[Event "Early-Titled-Tuesday-Blitz-April-02-2024"]
[Site "Chess.com"]
[Date "2024.04.02"]
[Round "11"]
[White "Chessexplained"]
[Black "lamomiajunior"]
[Result "1/2-1/2"]
[WhiteElo "2569"]
[BlackElo "2700"]
[TimeControl "180+1"]
[EndTime "10:07:55 PDT"]
[Termination "Game drawn by repetition"]

1. d4 {[%clk 0:03:00.9]} 1... Nf6 {[%clk 0:02:59.8]} 2. g3 {[%clk 0:02:59.6]}
2... d5 {[%clk 0:02:58.7]} 3. Nf3 {[%clk 0:02:58.3]} 3... Bf5 {[%clk 0:02:59.3]}
4. c4 {[%clk 0:02:58]} 4... e6 {[%clk 0:02:58.2]} 5. Nc3 {[%clk 0:02:58]} 5...
c6 {[%clk 0:02:57.9]} 6. Qb3 {[%clk 0:02:53.5]} 6... Qb6 {[%clk 0:02:57.2]} 7.
c5 {[%clk 0:02:53.7]} 7... Qxb3 {[%clk 0:02:56.9]} 8. axb3 {[%clk 0:02:54.6]}
8... h6 {[%clk 0:02:56.6]} 9. b4 {[%clk 0:02:53.7]} 9... Be7 {[%clk 0:02:45]}
10. Bf4 {[%clk 0:02:46.7]} 10... O-O {[%clk 0:02:42.4]} 11. h3 {[%clk
0:02:41.2]} 11... a6 {[%clk 0:02:30.5]} 12. g4 {[%clk 0:02:40.8]} 12... Bh7
{[%clk 0:02:29.7]} 13. e3 {[%clk 0:02:40.5]} 13... Nbd7 {[%clk 0:02:29.7]} 14.
Nd2 {[%clk 0:02:39.7]} 14... Rfe8 {[%clk 0:02:28.9]} 15. Bg3 {[%clk 0:02:37.5]}
15... Bd8 {[%clk 0:02:27]} 16. f4 {[%clk 0:02:27.1]} 16... Bc7 {[%clk
0:02:27.1]} 17. Nb3 {[%clk 0:02:23.4]} 17... Ne4 {[%clk 0:02:26.6]} 18. Nxe4
{[%clk 0:02:21.2]} 18... Bxe4 {[%clk 0:02:27.5]} 19. Rg1 {[%clk 0:02:18]} 19...
f6 {[%clk 0:02:28.1]} 20. Kd2 {[%clk 0:02:13.3]} 20... g5 {[%clk 0:02:15.6]} 21.
Na5 {[%clk 0:02:07.8]} 21... Bxa5 {[%clk 0:02:09.9]} 22. bxa5 {[%clk 0:02:04.4]}
22... e5 {[%clk 0:02:09.4]} 23. fxe5 {[%clk 0:01:56]} 23... fxe5 {[%clk
0:02:09.2]} 24. Be2 {[%clk 0:01:38]} 24... Kf7 {[%clk 0:02:08.6]} 25. Raf1+
{[%clk 0:01:35.5]} 25... Ke6 {[%clk 0:02:08.1]} 26. Rf2 {[%clk 0:01:33.5]} 26...
Rf8 {[%clk 0:02:05.4]} 27. Rgf1 {[%clk 0:01:32.5]} 27... Rxf2 {[%clk 0:02:01.4]}
28. Rxf2 {[%clk 0:01:32.1]} 28... exd4 {[%clk 0:01:57.6]} 29. exd4 {[%clk
0:01:33]} 29... Bg6 {[%clk 0:01:50.2]} 30. Bd6 {[%clk 0:01:03.9]} 30... Nf6
{[%clk 0:01:47]} 31. Bf3 {[%clk 0:00:56.1]} 31... Be4 {[%clk 0:01:44.8]} 32. Be5
{[%clk 0:00:55.2]} 32... Nd7 {[%clk 0:01:31.3]} 33. Bxe4 {[%clk 0:00:50.7]}
33... dxe4 {[%clk 0:01:31.3]} 34. Bg7 {[%clk 0:00:50.7]} 34... Rg8 {[%clk
0:01:27.6]} 35. Bxh6 {[%clk 0:00:50.2]} 35... Rh8 {[%clk 0:01:25.9]} 36. Bxg5
{[%clk 0:00:41.3]} 36... Rxh3 {[%clk 0:01:26.4]} 37. Rf5 {[%clk 0:00:26.1]}
37... Rd3+ {[%clk 0:01:21.6]} 38. Ke2 {[%clk 0:00:21.3]} 38... Rxd4 {[%clk
0:01:20.6]} 39. Bd2 {[%clk 0:00:17.6]} 39... Rd3 {[%clk 0:01:19.7]} 40. Bc3
{[%clk 0:00:15.4]} 40... Rg3 {[%clk 0:01:18.3]} 41. Rf4 {[%clk 0:00:13.5]} 41...
Nxc5 {[%clk 0:01:16.6]} 42. Rf6+ {[%clk 0:00:04.7]} 42... Kd5 {[%clk 0:01:16.2]}
43. Rf5+ {[%clk 0:00:04.8]} 43... Kc4 {[%clk 0:01:15.1]} 44. g5 {[%clk
0:00:05.3]} 44... Na4 {[%clk 0:01:11.6]} 45. Bf6 {[%clk 0:00:02]} 45... Nc5
{[%clk 0:01:05.4]} 46. Re5 {[%clk 0:00:02.4]} 46... Nd7 {[%clk 0:00:48.4]} 47.
Re7 {[%clk 0:00:02.2]} 47... Nc5 {[%clk 0:00:44]} 48. Re5 {[%clk 0:00:02.3]}
48... Rg4 {[%clk 0:00:38.1]} 49. Ke3 {[%clk 0:00:02.3]} 49... Rg3+ {[%clk
0:00:23.6]} 50. Ke2 {[%clk 0:00:02.8]} 1/2-1/2

[Event "Early-Titled-Tuesday-Blitz-April-02-2024"]
[Site "Chess.com"]
[Date "2024.04.02"]
[Round "11"]
[White "Ralf61"]
[Black "MNyuyu"]
[Result "1-0"]
[WhiteElo "2514"]
[BlackElo "2384"]
[TimeControl "180+1"]
[EndTime "10:07:56 PDT"]
[Termination "Ralf61 won by checkmate"]

1. Nf3 {[%clk 0:02:59.6]} 1... d5 {[%clk 0:03:00]} 2. d4 {[%clk 0:02:59.3]} 2...
e6 {[%clk 0:03:00.3]} 3. c4 {[%clk 0:02:59.2]} 3... Nf6 {[%clk 0:02:59.3]} 4.
Nc3 {[%clk 0:02:58.7]} 4... Be7 {[%clk 0:02:59.8]} 5. Bf4 {[%clk 0:02:57.6]}
5... O-O {[%clk 0:02:59.2]} 6. e3 {[%clk 0:02:57.4]} 6... b6 {[%clk 0:02:59.4]}
7. cxd5 {[%clk 0:02:55.9]} 7... Nxd5 {[%clk 0:02:58.7]} 8. Nxd5 {[%clk
0:02:52.2]} 8... Qxd5 {[%clk 0:02:58.6]} 9. Bd3 {[%clk 0:02:50.9]} 9... Bb4+
{[%clk 0:02:55.9]} 10. Ke2 {[%clk 0:02:48.2]} 10... Ba6 {[%clk 0:02:54.2]} 11.
Bxa6 {[%clk 0:02:37.5]} 11... Nxa6 {[%clk 0:02:53.7]} 12. Qd3 {[%clk 0:02:37.5]}
12... Qb7 {[%clk 0:02:39.8]} 13. Ng5 {[%clk 0:02:34.6]} 13... g6 {[%clk
0:02:39]} 14. h4 {[%clk 0:02:34.4]} 14... Bd6 {[%clk 0:02:25.6]} 15. Bxd6 {[%clk
0:02:12.1]} 15... cxd6 {[%clk 0:02:25]} 16. h5 {[%clk 0:02:04.2]} 16... Nb4
{[%clk 0:02:24.6]} 17. Qb5 {[%clk 0:01:51]} 17... Qd5 {[%clk 0:02:02.6]} 18.
Qxd5 {[%clk 0:01:21.5]} 18... Nxd5 {[%clk 0:02:03.5]} 19. Rac1 {[%clk
0:01:12.2]} 19... Rfc8 {[%clk 0:02:03.8]} 20. Ne4 {[%clk 0:01:11.2]} 20... Nb4
{[%clk 0:01:35.4]} 21. a3 {[%clk 0:01:02.4]} 21... d5 {[%clk 0:01:24.2]} 22. Nd6
{[%clk 0:00:56.1]} 22... Rd8 {[%clk 0:01:20.6]} 23. Nxf7 {[%clk 0:00:51.3]}
23... Kxf7 {[%clk 0:01:21.5]} 24. hxg6+ {[%clk 0:00:50.5]} 24... Kxg6 {[%clk
0:01:20.6]} 25. axb4 {[%clk 0:00:49.6]} 25... Rac8 {[%clk 0:01:18.6]} 26. b5
{[%clk 0:00:44.3]} 26... Rc4 {[%clk 0:00:59.8]} 27. Rxc4 {[%clk 0:00:40.1]}
27... dxc4 {[%clk 0:01:00.7]} 28. Rc1 {[%clk 0:00:38.1]} 28... Rd5 {[%clk
0:01:01]} 29. Rxc4 {[%clk 0:00:31.3]} 29... Rxb5 {[%clk 0:01:01.6]} 30. Rc2
{[%clk 0:00:30.9]} 30... Rb3 {[%clk 0:00:59.2]} 31. Kf3 {[%clk 0:00:30.1]} 31...
a5 {[%clk 0:00:56.5]} 32. Ke4 {[%clk 0:00:27.9]} 32... Kf6 {[%clk 0:00:55.7]}
33. f4 {[%clk 0:00:26.6]} 33... b5 {[%clk 0:00:52.7]} 34. g4 {[%clk 0:00:24.5]}
34... h6 {[%clk 0:00:51.6]} 35. Rc6 {[%clk 0:00:19.8]} 35... Ke7 {[%clk
0:00:43.4]} 36. Rc2 {[%clk 0:00:14.4]} 36... Kd6 {[%clk 0:00:40.6]} 37. Rh2
{[%clk 0:00:11.9]} 37... a4 {[%clk 0:00:38.9]} 38. Rxh6 {[%clk 0:00:10.9]} 38...
Rxb2 {[%clk 0:00:38.9]} 39. f5 {[%clk 0:00:10.8]} 39... a3 {[%clk 0:00:37.8]}
40. Rxe6+ {[%clk 0:00:10.3]} 40... Kd7 {[%clk 0:00:37]} 41. Ra6 {[%clk
0:00:04.9]} 41... b4 {[%clk 0:00:37.1]} 42. f6 {[%clk 0:00:04.5]} 42... a2
{[%clk 0:00:32.4]} 43. g5 {[%clk 0:00:04.3]} 43... b3 {[%clk 0:00:31.9]} 44. g6
{[%clk 0:00:04]} 44... Rg2 {[%clk 0:00:30.6]} 45. g7 {[%clk 0:00:03.4]} 45...
Ke8 {[%clk 0:00:29]} 46. Ra7 {[%clk 0:00:02.5]} 46... a1=Q {[%clk 0:00:22.4]}
47. f7+ {[%clk 0:00:02.3]} 47... Kd8 {[%clk 0:00:22.1]} 48. f8=Q# {[%clk
0:00:01.3]} 1-0

[Event "Early-Titled-Tuesday-Blitz-April-02-2024"]
[Site "Chess.com"]
[Date "2024.04.02"]
[Round "11"]
[White "Kunalm64"]
[Black "viktorgen2021"]
[Result "1-0"]
[WhiteElo "2621"]
[BlackElo "2494"]
[TimeControl "180+1"]
[EndTime "10:08:00 PDT"]
[Termination "Kunalm64 won by resignation"]

1. e4 {[%clk 0:02:59.9]} 1... g6 {[%clk 0:02:59.3]} 2. d4 {[%clk 0:02:58.6]}
2... Bg7 {[%clk 0:03:00]} 3. Nf3 {[%clk 0:02:55.2]} 3... d6 {[%clk 0:02:59.1]}
4. Bc4 {[%clk 0:02:55.5]} 4... Nf6 {[%clk 0:02:58.4]} 5. Qe2 {[%clk 0:02:55.2]}
5... O-O {[%clk 0:02:58.6]} 6. O-O {[%clk 0:02:50.6]} 6... c6 {[%clk 0:02:50.9]}
7. e5 {[%clk 0:02:46.5]} 7... Nd5 {[%clk 0:02:49.7]} 8. Nc3 {[%clk 0:02:43.6]}
8... Nxc3 {[%clk 0:02:45.9]} 9. bxc3 {[%clk 0:02:44.5]} 9... Bg4 {[%clk
0:02:46.1]} 10. h3 {[%clk 0:02:43.3]} 10... Bxf3 {[%clk 0:02:44.4]} 11. Qxf3
{[%clk 0:02:44.2]} 11... dxe5 {[%clk 0:02:43.6]} 12. dxe5 {[%clk 0:02:44]} 12...
Bxe5 {[%clk 0:02:36.1]} 13. Bh6 {[%clk 0:02:41]} 13... Bg7 {[%clk 0:02:35.3]}
14. Rad1 {[%clk 0:02:39.9]} 14... Qa5 {[%clk 0:02:30.8]} 15. Qf4 {[%clk
0:02:32.8]} 15... Bxh6 {[%clk 0:02:22.5]} 16. Qxh6 {[%clk 0:02:31.3]} 16... Qxc3
{[%clk 0:02:21.9]} 17. Bb3 {[%clk 0:02:25.2]} 17... Qf6 {[%clk 0:02:13.7]} 18.
Rfe1 {[%clk 0:02:19.1]} 18... Na6 {[%clk 0:02:07.1]} 19. Rd7 {[%clk 0:02:16]}
19... Nc5 {[%clk 0:02:06.9]} 20. Rdxe7 {[%clk 0:02:16]} 20... Nxb3 {[%clk
0:02:05.8]} 21. cxb3 {[%clk 0:02:16]} 21... b5 {[%clk 0:01:59.7]} 22. Qc1 {[%clk
0:02:08.6]} 22... a5 {[%clk 0:01:53.4]} 23. a3 {[%clk 0:01:52.5]} 23... b4
{[%clk 0:01:47.4]} 24. a4 {[%clk 0:01:47.1]} 24... Rad8 {[%clk 0:01:44.9]} 25.
R1e3 {[%clk 0:01:37.3]} 25... Rd6 {[%clk 0:01:35.1]} 26. g3 {[%clk 0:00:59.6]}
26... Kg7 {[%clk 0:01:31.5]} 27. Kg2 {[%clk 0:00:54.7]} 27... Rfd8 {[%clk
0:01:25.7]} 28. R7e4 {[%clk 0:00:51.3]} 28... Rd5 {[%clk 0:01:09.8]} 29. Rf4
{[%clk 0:00:49.6]} 29... Qd6 {[%clk 0:01:07]} 30. Qb2+ {[%clk 0:00:39.7]} 30...
Kg8 {[%clk 0:01:03.7]} 31. Rfe4 {[%clk 0:00:36]} 31... Rd4 {[%clk 0:00:56.6]}
32. Re7 {[%clk 0:00:24.8]} 32... c5 {[%clk 0:00:52.7]} 33. Qe2 {[%clk
0:00:21.3]} 33... Rd2 {[%clk 0:00:48.7]} 34. Qf3 {[%clk 0:00:20.9]} 34... Qd5
{[%clk 0:00:46.6]} 35. R3e4 {[%clk 0:00:20.1]} 35... Rd4 {[%clk 0:00:42.2]} 36.
Rxd4 {[%clk 0:00:18.8]} 36... Qxf3+ {[%clk 0:00:40.6]} 37. Kxf3 {[%clk
0:00:19.3]} 37... Rxd4 {[%clk 0:00:41.5]} 38. Ke3 {[%clk 0:00:19.5]} 38... Rd1
{[%clk 0:00:39.7]} 39. Rc7 {[%clk 0:00:18.5]} 39... Rc1 {[%clk 0:00:38.8]} 40.
Ke4 {[%clk 0:00:16.5]} 40... Rc3 {[%clk 0:00:36.3]} 41. Kd5 {[%clk 0:00:16.7]}
41... Rxb3 {[%clk 0:00:36.6]} 42. Rxc5 {[%clk 0:00:16.9]} 42... Rd3+ {[%clk
0:00:34]} 43. Kc6 {[%clk 0:00:16.4]} 43... b3 {[%clk 0:00:32.2]} 44. Rxa5 {[%clk
0:00:16.5]} 44... Rd2 {[%clk 0:00:29.5]} 45. Rb5 {[%clk 0:00:16.3]} 45... b2
{[%clk 0:00:28.7]} 46. a5 {[%clk 0:00:15.7]} 46... Rxf2 {[%clk 0:00:28.4]} 47.
a6 {[%clk 0:00:15.9]} 47... Rf6+ {[%clk 0:00:16]} 48. Kb7 {[%clk 0:00:15.3]}
48... Rf5 {[%clk 0:00:14.1]} 49. Rxb2 {[%clk 0:00:14]} 1-0

[Event "Early-Titled-Tuesday-Blitz-April-02-2024"]
[Site "Chess.com"]
[Date "2024.04.02"]
[Round "11"]
[White "stolencandy13"]
[Black "VanRommel28"]
[Result "0-1"]
[WhiteElo "2662"]
[BlackElo "2537"]
[TimeControl "180+1"]
[EndTime "10:08:02 PDT"]
[Termination "VanRommel28 won by checkmate"]

1. d4 {[%clk 0:03:00.9]} 1... g6 {[%clk 0:02:41]} 2. Bf4 {[%clk 0:03:00.2]} 2...
Bg7 {[%clk 0:02:40.4]} 3. Nc3 {[%clk 0:03:00.9]} 3... d6 {[%clk 0:02:40.5]} 4.
Nf3 {[%clk 0:02:59.8]} 4... a6 {[%clk 0:02:40.5]} 5. h4 {[%clk 0:02:56.8]} 5...
h6 {[%clk 0:02:39.9]} 6. e4 {[%clk 0:02:54.3]} 6... Nd7 {[%clk 0:02:38]} 7. Bc4
{[%clk 0:02:51.7]} 7... e6 {[%clk 0:02:37.5]} 8. Bb3 {[%clk 0:02:49]} 8... b5
{[%clk 0:02:35.7]} 9. e5 {[%clk 0:02:43.9]} 9... d5 {[%clk 0:02:26.9]} 10. Qd2
{[%clk 0:02:32]} 10... Ne7 {[%clk 0:02:22.3]} 11. g4 {[%clk 0:02:28.2]} 11...
Nb6 {[%clk 0:02:14.5]} 12. Ne2 {[%clk 0:02:24.6]} 12... Nc4 {[%clk 0:02:10.3]}
13. Qc1 {[%clk 0:02:24.3]} 13... c5 {[%clk 0:02:07.6]} 14. dxc5 {[%clk
0:02:18.7]} 14... Qc7 {[%clk 0:02:06.7]} 15. Ned4 {[%clk 0:02:14]} 15... Bb7
{[%clk 0:02:02.9]} 16. Bxc4 {[%clk 0:02:09.4]} 16... dxc4 {[%clk 0:02:01.7]} 17.
b4 {[%clk 0:02:03.7]} 17... Nc6 {[%clk 0:01:47.9]} 18. O-O {[%clk 0:01:31.8]}
18... O-O-O {[%clk 0:01:30.8]} 19. c3 {[%clk 0:01:25]} 19... g5 {[%clk
0:01:29.7]} 20. hxg5 {[%clk 0:01:03]} 20... hxg5 {[%clk 0:01:25.8]} 21. Bg3
{[%clk 0:01:03]} 21... Qd7 {[%clk 0:01:09.3]} 22. Qe3 {[%clk 0:00:50.7]} 22...
Qd5 {[%clk 0:01:07.1]} 23. Kg2 {[%clk 0:00:39.5]} 23... Nxe5 {[%clk 0:00:40.2]}
24. c6 {[%clk 0:00:35.6]} 24... Nxc6 {[%clk 0:00:38.2]} 25. Nxc6 {[%clk
0:00:30.4]} 25... Bxc6 {[%clk 0:00:37.5]} 26. Rad1 {[%clk 0:00:31]} 26... Qe4
{[%clk 0:00:26.3]} 27. Rfe1 {[%clk 0:00:27.3]} 27... Qxe3 {[%clk 0:00:24.5]} 28.
fxe3 {[%clk 0:00:27.9]} 28... Bxc3 {[%clk 0:00:22.7]} 29. Rxd8+ {[%clk 0:00:25]}
29... Rxd8 {[%clk 0:00:23.6]} 30. Re2 {[%clk 0:00:21.7]} 30... Rd2 {[%clk
0:00:24.1]} 31. Kf2 {[%clk 0:00:19.2]} 31... Rxe2+ {[%clk 0:00:23.6]} 32. Kxe2
{[%clk 0:00:20.1]} 32... Bxf3+ {[%clk 0:00:23.8]} 33. Kxf3 {[%clk 0:00:19.6]}
33... Bxb4 {[%clk 0:00:24.7]} 34. Be5 {[%clk 0:00:18.7]} 34... Be7 {[%clk
0:00:24.5]} 35. Ke4 {[%clk 0:00:18.2]} 35... Kd7 {[%clk 0:00:23.8]} 36. Bc3
{[%clk 0:00:18.1]} 36... f6 {[%clk 0:00:22.6]} 37. Bb2 {[%clk 0:00:17.3]} 37...
Kc6 {[%clk 0:00:22.2]} 38. Bc3 {[%clk 0:00:17]} 38... Bd8 {[%clk 0:00:21.1]} 39.
Bb2 {[%clk 0:00:16.2]} 39... a5 {[%clk 0:00:20.3]} 40. Bc3 {[%clk 0:00:15.9]}
40... b4 {[%clk 0:00:20.4]} 41. Bb2 {[%clk 0:00:15]} 41... Kb5 {[%clk
0:00:19.1]} 42. Kd4 {[%clk 0:00:13.4]} 42... a4 {[%clk 0:00:18.2]} 43. Bc1
{[%clk 0:00:10.5]} 43... Bc7 {[%clk 0:00:15.9]} 44. Ke4 {[%clk 0:00:10.3]} 44...
Be5 {[%clk 0:00:15.9]} 45. a3 {[%clk 0:00:06.6]} 45... b3 {[%clk 0:00:15.1]} 46.
Kf3 {[%clk 0:00:06.6]} 46... c3 {[%clk 0:00:14.7]} 47. Bb2 {[%clk 0:00:07.5]}
47... cxb2 {[%clk 0:00:14.7]} 48. Ke4 {[%clk 0:00:08.1]} 48... b1=Q+ {[%clk
0:00:14.5]} 49. Kf3 {[%clk 0:00:09]} 49... Kc4 {[%clk 0:00:12.9]} 50. e4 {[%clk
0:00:08.7]} 50... Kd3 {[%clk 0:00:11.8]} 51. Kf2 {[%clk 0:00:09.2]} 51... Qc2+
{[%clk 0:00:11.6]} 52. Kf3 {[%clk 0:00:10.1]} 52... Qe2# {[%clk 0:00:11.4]} 0-1

[Event "Early-Titled-Tuesday-Blitz-April-02-2024"]
[Site "Chess.com"]
[Date "2024.04.02"]
[Round "11"]
[White "PonyQueen07"]
[Black "AlainBruxelles"]
[Result "0-1"]
[WhiteElo "2170"]
[BlackElo "2312"]
[TimeControl "180+1"]
[EndTime "10:08:05 PDT"]
[Termination "AlainBruxelles won by checkmate"]

1. c4 {[%clk 0:02:59.8]} 1... e5 {[%clk 0:02:59.1]} 2. Nc3 {[%clk 0:02:59.8]}
2... Nf6 {[%clk 0:02:58.5]} 3. g3 {[%clk 0:03:00.3]} 3... Nc6 {[%clk 0:02:58.6]}
4. Bg2 {[%clk 0:03:00.6]} 4... Bb4 {[%clk 0:02:58.7]} 5. Nf3 {[%clk 0:02:59]}
5... O-O {[%clk 0:02:56.5]} 6. O-O {[%clk 0:02:59]} 6... e4 {[%clk 0:02:55.1]}
7. Ng5 {[%clk 0:02:51.2]} 7... Bxc3 {[%clk 0:02:55.1]} 8. dxc3 {[%clk
0:02:46.8]} 8... Re8 {[%clk 0:02:55.4]} 9. f3 {[%clk 0:02:37.4]} 9... exf3
{[%clk 0:02:51.9]} 10. Nxf3 {[%clk 0:02:34.3]} 10... h6 {[%clk 0:02:49.2]} 11.
Bf4 {[%clk 0:02:25.4]} 11... d6 {[%clk 0:02:47.6]} 12. Nd4 {[%clk 0:02:17.8]}
12... Ne5 {[%clk 0:02:45.5]} 13. b3 {[%clk 0:02:10]} 13... c6 {[%clk 0:02:43.6]}
14. Nf3 {[%clk 0:02:03.2]} 14... Qe7 {[%clk 0:02:36.1]} 15. h3 {[%clk
0:01:44.8]} 15... Bf5 {[%clk 0:02:25.8]} 16. Nxe5 {[%clk 0:01:34.6]} 16... dxe5
{[%clk 0:02:24.6]} 17. Bxh6 {[%clk 0:01:29.4]} 17... Bxh3 {[%clk 0:02:21.2]} 18.
Bxg7 {[%clk 0:01:14.9]} 18... Nh5 {[%clk 0:02:03.8]} 19. Bxh3 {[%clk 0:01:05.4]}
19... Qg5 {[%clk 0:01:57.1]} 20. Rf2 {[%clk 0:00:18.8]} 20... Kxg7 {[%clk
0:01:51.7]} 21. Qd7 {[%clk 0:00:10.4]} 21... Re7 {[%clk 0:01:39.4]} 22. Qf5
{[%clk 0:00:06.4]} 22... Qxf5 {[%clk 0:01:37.4]} 23. Rxf5 {[%clk 0:00:06.7]}
23... Nf6 {[%clk 0:01:19.7]} 24. Raf1 {[%clk 0:00:05.8]} 24... Ne4 {[%clk
0:01:19.8]} 25. Kh2 {[%clk 0:00:04.4]} 25... Rh8 {[%clk 0:01:16.8]} 26. Kg2
{[%clk 0:00:04.1]} 26... Nxc3 {[%clk 0:01:09.8]} 27. Rg5+ {[%clk 0:00:03.6]}
27... Kf8 {[%clk 0:01:09.3]} 28. Bg4 {[%clk 0:00:02.5]} 28... Ne4 {[%clk
0:01:02.9]} 29. Rgf5 {[%clk 0:00:02.5]} 29... Rg8 {[%clk 0:00:59]} 30. Bh5
{[%clk 0:00:02.1]} 30... Rxg3+ {[%clk 0:00:53.5]} 31. Kh2 {[%clk 0:00:02]} 31...
Rg7 {[%clk 0:00:53.2]} 32. Bf3 {[%clk 0:00:01.4]} 32... Nd6 {[%clk 0:00:52.5]}
33. Rh5 {[%clk 0:00:01.1]} 33... f5 {[%clk 0:00:44.3]} 34. Bg2 {[%clk
0:00:01.2]} 34... Rh7 {[%clk 0:00:40.7]} 35. Rxh7 {[%clk 0:00:01.4]} 35... Rxh7+
{[%clk 0:00:40.7]} 36. Bh3 {[%clk 0:00:01.1]} 36... Ke7 {[%clk 0:00:36.9]} 37.
Kg2 {[%clk 0:00:01.8]} 37... Kf6 {[%clk 0:00:36.5]} 38. e4 {[%clk 0:00:01.6]}
38... f4 {[%clk 0:00:33.9]} 39. Re1 {[%clk 0:00:01.3]} 39... Rg7+ {[%clk
0:00:28.6]} 40. Kf3 {[%clk 0:00:01.3]} 40... Rg3+ {[%clk 0:00:28.6]} 41. Kf2
{[%clk 0:00:01.8]} 41... Rxh3 {[%clk 0:00:28.6]} 42. Rg1 {[%clk 0:00:02]} 42...
Rh2+ {[%clk 0:00:28.5]} 43. Kf3 {[%clk 0:00:02.2]} 43... Rh3+ {[%clk 0:00:28.6]}
44. Kg4 {[%clk 0:00:02.5]} 44... Rg3+ {[%clk 0:00:28.4]} 45. Rxg3 {[%clk
0:00:03.2]} 45... fxg3 {[%clk 0:00:29]} 46. Kxg3 {[%clk 0:00:04.1]} 46... Nxe4+
{[%clk 0:00:29.1]} 47. Kf3 {[%clk 0:00:04.3]} 47... Nc3 {[%clk 0:00:28.8]} 48.
Ke3 {[%clk 0:00:04.5]} 48... Nxa2 {[%clk 0:00:28.7]} 49. Ke4 {[%clk 0:00:04.8]}
49... Nc1 {[%clk 0:00:27.6]} 50. Ke3 {[%clk 0:00:04.9]} 50... Nxb3 {[%clk
0:00:27.6]} 51. Ke4 {[%clk 0:00:05.2]} 51... Nc5+ {[%clk 0:00:27.5]} 52. Ke3
{[%clk 0:00:05.4]} 52... a5 {[%clk 0:00:28.1]} 53. Kf3 {[%clk 0:00:06.2]} 53...
a4 {[%clk 0:00:28.6]} 54. Ke3 {[%clk 0:00:07]} 54... a3 {[%clk 0:00:29.1]} 55.
Kf3 {[%clk 0:00:07.9]} 55... a2 {[%clk 0:00:29.5]} 56. Ke3 {[%clk 0:00:08.8]}
56... a1=Q {[%clk 0:00:28.6]} 57. Kf3 {[%clk 0:00:09.7]} 57... Qc3+ {[%clk
0:00:27.6]} 58. Kg4 {[%clk 0:00:09.9]} 58... Ne4 {[%clk 0:00:24.1]} 59. Kh5
{[%clk 0:00:10.1]} 59... Qh3# {[%clk 0:00:23.3]} 0-1

[Event "Early-Titled-Tuesday-Blitz-April-02-2024"]
[Site "Chess.com"]
[Date "2024.04.02"]
[Round "11"]
[White "Fengwi"]
[Black "rionelG"]
[Result "1-0"]
[WhiteElo "2410"]
[BlackElo "2219"]
[TimeControl "180+1"]
[EndTime "10:08:06 PDT"]
[Termination "Fengwi won by checkmate"]

1. Nf3 {[%clk 0:02:52.1]} 1... c5 {[%clk 0:02:59.1]} 2. b3 {[%clk 0:02:50.3]}
2... Nc6 {[%clk 0:02:58.9]} 3. Bb2 {[%clk 0:02:49.1]} 3... Nf6 {[%clk
0:02:57.6]} 4. c4 {[%clk 0:02:45.5]} 4... g6 {[%clk 0:02:56.4]} 5. g3 {[%clk
0:02:45.3]} 5... Bg7 {[%clk 0:02:55.6]} 6. Bg2 {[%clk 0:02:45.9]} 6... O-O
{[%clk 0:02:54.9]} 7. O-O {[%clk 0:02:46.3]} 7... e6 {[%clk 0:02:53.7]} 8. d4
{[%clk 0:02:45.9]} 8... cxd4 {[%clk 0:02:42.8]} 9. Nxd4 {[%clk 0:02:45.3]} 9...
d5 {[%clk 0:02:42.8]} 10. cxd5 {[%clk 0:02:44.6]} 10... Nxd5 {[%clk 0:02:32.3]}
11. Nxc6 {[%clk 0:02:44]} 11... bxc6 {[%clk 0:02:33.2]} 12. Bxg7 {[%clk
0:02:43.5]} 12... Kxg7 {[%clk 0:02:34.1]} 13. Qd4+ {[%clk 0:02:34.4]} 13... Qf6
{[%clk 0:02:34.1]} 14. Qxf6+ {[%clk 0:02:32.9]} 14... Kxf6 {[%clk 0:02:35]} 15.
Nd2 {[%clk 0:02:32.4]} 15... Ba6 {[%clk 0:02:34.6]} 16. Rfe1 {[%clk 0:02:20.7]}
16... Rfd8 {[%clk 0:02:26.3]} 17. Ne4+ {[%clk 0:02:19.7]} 17... Ke7 {[%clk
0:02:24.9]} 18. Rac1 {[%clk 0:02:19.8]} 18... Rac8 {[%clk 0:01:47]} 19. Nc5
{[%clk 0:02:17.9]} 19... Nc7 {[%clk 0:01:45.6]} 20. Bxc6 {[%clk 0:02:11.9]}
20... Rd2 {[%clk 0:01:36.5]} 21. Bf3 {[%clk 0:01:50.7]} 21... Rdd8 {[%clk
0:00:44.7]} 22. b4 {[%clk 0:00:54.5]} 22... Bb5 {[%clk 0:00:37.5]} 23. a4 {[%clk
0:00:53.9]} 23... Be8 {[%clk 0:00:36.6]} 24. b5 {[%clk 0:00:51.5]} 24... Nd5
{[%clk 0:00:35.5]} 25. Nb7 {[%clk 0:00:44.4]} 25... Rxc1 {[%clk 0:00:30.6]} 26.
Rxc1 {[%clk 0:00:45.3]} 26... Rd7 {[%clk 0:00:30.8]} 27. Na5 {[%clk 0:00:44.2]}
27... Nb6 {[%clk 0:00:26.8]} 28. Nc6+ {[%clk 0:00:43.4]} 28... Kf8 {[%clk
0:00:25.6]} 29. a5 {[%clk 0:00:44.1]} 29... Na4 {[%clk 0:00:18.9]} 30. Ra1
{[%clk 0:00:38.1]} 30... Nc3 {[%clk 0:00:18.2]} 31. b6 {[%clk 0:00:34.1]} 31...
axb6 {[%clk 0:00:18.4]} 32. a6 {[%clk 0:00:32.8]} 32... Rd2 {[%clk 0:00:03.5]}
33. a7 {[%clk 0:00:32.2]} 33... Nxe2+ {[%clk 0:00:02.7]} 34. Kg2 {[%clk
0:00:20]} 34... Bxc6 {[%clk 0:00:03]} 35. Bxc6 {[%clk 0:00:19.6]} 35... Nd4
{[%clk 0:00:03]} 36. a8=Q+ {[%clk 0:00:19.2]} 36... Kg7 {[%clk 0:00:03.9]} 37.
Bf3 {[%clk 0:00:18]} 37... Nf5 {[%clk 0:00:03.9]} 38. Qe4 {[%clk 0:00:16.8]}
38... Rd6 {[%clk 0:00:02.7]} 39. Ra7 {[%clk 0:00:14.2]} 39... Kf6 {[%clk
0:00:02.9]} 40. h4 {[%clk 0:00:12.1]} 40... Rd2 {[%clk 0:00:02.9]} 41. Qf4
{[%clk 0:00:10.5]} 41... Rb2 {[%clk 0:00:02.5]} 42. g4 {[%clk 0:00:09.5]} 42...
e5 {[%clk 0:00:02.2]} 43. Qg5+ {[%clk 0:00:06.4]} 43... Ke6 {[%clk 0:00:01.4]}
44. gxf5+ {[%clk 0:00:07.3]} 44... gxf5 {[%clk 0:00:02.2]} 45. Qe7# {[%clk
0:00:04.8]} 1-0